bitfinex/quotes_SOLUSD_20260302
["timestamp","ask_amount","ask_price","bid_price","bid_amount"]
[1772416197700,8.77330941,84.55,84.521,2.21883517]
[1772416198522,8.77330941,84.56,84.521,2.21883517]
[1772416199410,8.77330941,84.56,84.522,2.21883517]
[1772416200515,8.77330941,84.57,84.531,2.21883517]
[1772416200812,11.82466388,84.569,84.533,2.21883517]
[1772416200995,11.82326582,84.579,84.551,2.21883517]
[1772416201417,41.38143037,84.579,84.551,2.21883517]
[1772416203215,8.77330941,84.56,84.535,2.21883517]
[1772416203417,41.38143037,84.579,84.522,2.21883517]
[1772416203418,8.77330941,84.55,84.522,2.21883517]
[1772416205098,41.39611348,84.549,84.51,8.77330941]
[1772416205621,2.01198094,84.548,84.51,8.77330941]
[1772416206002,2.01198094,84.548,84.51,20.60621057]
[1772416206211,41.39611348,84.549,84.52,8.77330941]
[1772416206212,11.82746099,84.549,84.52,8.77330941]
[1772416206417,11.82746099,84.549,84.53,8.77330941]
[1772416206809,11.82606227,84.559,84.53,8.77330941]
[1772416207217,2.01198094,84.587,84.551,2.05707566]
[1772416207404,11.82228737,84.586,84.551,2.05707566]
[1772416207725,11.82228737,84.586,84.561,2.05707566]
[1772416208024,11.82047069,84.599,84.571,2.05707566]
[1772416208423,41.37164741,84.599,84.571,2.05707566]
[1772416209003,11.82047069,84.599,84.571,2.05707566]
[1772416209531,41.36871342,84.605,84.571,2.05707566]
[1772416210511,2.01198094,84.634,84.591,2.05707566]
[1772416210703,3.69383402,84.629,84.601,2.05707566]
[1772416210933,11.81516358,84.637,84.611,2.05707566]
[1772416211222,11.81516358,84.637,84.572,41.3848555]
[1772416211223,8.77330941,84.62,84.591,2.05707566]
[1772416211426,2.01198094,84.627,84.591,2.05707566]
[1772416211634,8.77330941,84.62,84.591,2.05707566]
[1772416211811,2.01198094,84.609,84.578,2.05707566]
[1772416212012,8.77330941,84.6,84.57,8.77330941]
[1772416212228,2.01198094,84.599,84.56,8.77330941]
[1772416212429,8.77330941,84.59,84.559,2.05707566]
[1772416212807,10.8443234,84.59,84.559,2.05707566]
[1772416213107,8.77330941,84.58,84.551,2.14561166]
[1772416214830,2.07101399,84.588,84.551,2.14561166]
[1772416216029,11.82326582,84.579,84.551,2.14561166]
[1772416216507,41.38143037,84.579,84.551,2.14561166]
[1772416217618,11.82326582,84.579,84.551,2.14561166]
[1772416218325,2.08074771,84.579,84.551,2.14561166]
[1772416218531,10.85405712,84.56,84.533,2.10593414]
[1772416218837,41.37751663,84.587,84.497,59.17322781]
[1772416218838,2.08074771,84.568,84.531,2.10593414]
[1772416219512,2.08074771,84.577,84.541,2.10593414]
[1772416219710,8.77330941,84.57,84.541,2.10593414]
[1772416220106,100.48825468,84.587,84.521,41.40982713]
[1772416220107,2.08074771,84.559,84.521,2.10593414]
[1772416220334,8.77330941,84.55,84.521,2.10593414]
[1772416220510,41.39170746,84.558,84.521,2.10593414]
[1772416221430,43.47245517,84.558,84.521,2.10593414]
[1772416221627,2.08074771,84.549,84.512,2.10593414]
[1772416221817,8.77330941,84.54,84.512,2.10593414]
[1772416222221,11.82886005,84.539,84.512,2.10593414]
[1772416227825,11.82886005,84.539,84.513,2.10593414]
[1772416228130,11.82886005,84.539,84.512,11.83258743]
[1772416228131,11.82466388,84.569,84.531,2.10593414]
[1772416228338,41.38632358,84.569,84.541,2.10593414]
[1772416228932,11.82466388,84.569,84.541,2.10593414]
[1772416229143,38.33147354,84.58,84.541,2.10593414]
[1772416229144,41.38143037,84.579,84.541,2.10593414]
[1772416229515,11.82326582,84.579,84.551,2.10593414]
[1772416230344,11.82186809,84.589,84.561,2.10593414]
[1772416232137,11.82047069,84.599,84.563,2.10593414]
[1772416232321,11.82047069,84.599,84.571,2.10593414]
[1772416232516,11.81907362,84.609,84.571,2.10593414]
[1772416233033,11.81907362,84.609,84.562,41.38974952]
[1772416233034,11.81907362,84.609,84.581,2.10593414]
[1772416233236,8.77330941,84.6,84.571,2.10593414]
[1772416233428,8.77330941,84.59,84.562,2.10593414]
[1772416233631,2.08074771,84.589,84.545,13.93382291]
[1772416233831,2.08074771,84.589,84.551,2.10593414]
[1772416234224,41.37702746,84.588,84.551,2.10593414]
[1772416234539,11.82200784,84.588,84.561,2.10593414]
[1772416235733,2.08074771,84.607,84.571,2.10593414]
[1772416235937,8.77330941,84.6,84.571,2.10593414]
[1772416236124,2.08074771,84.605,84.571,2.10593414]
[1772416237237,2.08074771,84.599,84.546,2.10593414]
[1772416237544,2.08074771,84.569,84.53,8.77330941]
[1772416238045,2.08074771,84.569,84.54,8.77330941]
[1772416238342,8.77330941,84.58,84.55,8.77330941]
[1772416238518,2.08074771,84.585,84.55,8.77330941]
[1772416238721,8.77330941,84.58,84.55,8.77330941]
[1772416239444,11.82326582,84.579,84.551,2.10593414]
[1772416240554,11.82326582,84.579,84.552,2.10593414]
[1772416240726,11.82326582,84.579,84.561,2.10593414]
[1772416241039,11.82326582,84.579,84.552,2.10593414]
[1772416241426,11.82242714,84.585,84.552,2.10593414]
[1772416241741,11.82242714,84.585,84.554,2.10593414]
[1772416242142,41.378495,84.585,84.554,2.10593414]
[1772416242526,11.82242714,84.585,84.554,2.10593414]
[1772416243030,8.77330941,84.61,84.571,2.10593414]
[1772416243233,2.08074771,84.609,84.58,8.77330941]
[1772416243434,2.08074771,84.599,84.566,2.10593414]
[1772416243830,2.08074771,84.599,84.571,2.10593414]
[1772416246045,11.82061041,84.598,84.571,2.10593414]
[1772416246252,13.90135812,84.598,84.571,2.10593414]
[1772416247233,43.45288416,84.598,84.571,2.10593414]
[1772416248648,2.07959409,84.597,84.571,2.10593414]
[1772416249136,11.82088987,84.596,84.571,2.10593414]
[1772416249337,13.90048396,84.596,84.571,2.10593414]
[1772416250653,11.82088987,84.596,84.571,2.10593414]
[1772416250851,11.82088987,84.596,84.573,2.05423667]
[1772416251957,29.54819593,84.608,84.573,2.05423667]
[1772416252140,2.07959409,84.619,84.581,2.05423667]
[1772416253470,43.44195198,84.618,84.583,2.05423667]
[1772416253963,2.07959409,84.617,84.583,2.05423667]
[1772416255966,2.07959409,84.615,84.583,2.05423667]
[1772416257465,2.07959409,84.613,84.583,2.05423667]
[1772416258342,2.07959409,84.609,84.583,2.05423667]
[1772416260345,13.8988074,84.608,84.583,2.05423667]
[1772416261170,11.81921331,84.608,84.583,2.05423667]
[1772416261760,11.81921331,84.608,84.585,2.05423667]
[1772416262156,2.07959409,84.607,84.58,10.82176025]
[1772416262358,2.07959409,84.607,84.581,2.05423667]
[1772416263263,11.8194927,84.606,84.581,2.05423667]
[1772416264270,11.8194927,84.606,84.583,2.05423667]
[1772416268880,2.07959409,84.609,84.584,2.05423667]
[1772416269079,2.07959409,84.619,84.591,2.05423667]
[1772416269659,3.68179827,84.61,84.591,2.05423667]
[1772416269868,2.07959409,84.612,84.591,2.05423667]
[1772416270474,3.68179827,84.61,84.591,2.05423667]
[1772416271081,11.81907362,84.609,84.591,2.05423667]
[1772416271278,11.81907362,84.609,84.578,11.82337993]
[1772416271279,2.07959409,84.579,84.54,3.68179827]
[1772416271459,3.68179827,84.56,84.531,2.05423667]
[1772416272378,3.68179827,84.55,84.513,2.05423667]
[1772416272683,8.77943719,84.55,84.513,2.05423667]
[1772416273162,20.60677542,84.55,84.521,2.05344736]
[1772416274079,11.82606227,84.559,84.531,2.05344736]
[1772416274970,20.60406135,84.57,84.541,2.05344736]
[1772416275281,20.60406135,84.57,84.543,2.05344736]
[1772416275670,11.82397347,84.574,84.543,2.05344736]
[1772416275873,11.82331543,84.579,84.551,2.05344736]
[1772416276382,2.17775967,84.569,84.542,11.8284403]
[1772416276686,2.17775967,84.569,84.543,2.05344736]
[1772416277183,8.77943719,84.57,84.543,2.05344736]
[1772416278168,11.82466388,84.569,84.543,2.05344736]
[1772416278369,11.82466388,84.569,84.544,11.82816048]
[1772416278677,11.82466388,84.569,84.545,2.01551812]
[1772416278884,8.77943719,84.57,84.545,2.01551812]
[1772416279588,13.97032226,84.578,84.545,2.01551812]
[1772416279788,2.14691665,84.577,84.545,2.01551812]
[1772416279984,8.77943719,84.6,84.543,11.82828963]
[1772416279985,11.82269298,84.584,84.561,2.01551812]
[1772416280491,8.77943719,84.59,84.562,11.82564272]
[1772416280492,11.82186809,84.589,84.562,11.82564272]
[1772416280682,13.96878474,84.589,84.563,2.01551812]
[1772416280989,2.14691665,84.588,84.563,2.01551812]
[1772416281490,11.82186809,84.589,84.563,2.01551812]
[1772416281684,2.14691665,84.588,84.563,2.01551812]
[1772416282582,11.82214761,84.587,84.563,2.01551812]
[1772416282893,2.14691665,84.586,84.563,2.01551812]
[1772416283570,2.14691665,84.579,84.547,2.01551812]
[1772416283994,2.14691665,84.569,84.547,2.01551812]
[1772416284384,11.82214761,84.587,84.561,2.01551812]
[1772416285071,13.96844996,84.592,84.562,2.01551812]
[1772416285388,11.82153331,84.592,84.571,2.01551812]
[1772416285977,11.82082164,84.597,84.571,2.01551812]
[1772416287300,2.14691665,84.596,84.571,2.01551812]
[1772416288394,2.14691665,84.589,84.553,2.01551812]
[1772416288884,2.14691665,84.587,84.561,2.01551812]
[1772416289086,10.92635384,84.6,84.571,2.01551812]
[1772416289281,11.82078663,84.597,84.571,2.01551812]
[1772416289591,13.96770328,84.597,84.571,2.01551812]
[1772416290090,2.14691665,84.596,84.571,2.01551812]
[1772416290297,29.55059589,84.601,84.571,2.01551812]
[1772416290591,2.14691665,84.6,84.571,2.01551812]
[1772416291993,11.82047069,84.599,84.571,2.01551812]
[1772416293096,13.96738734,84.599,84.571,2.01551812]
[1772416294291,11.8197825,84.604,84.581,2.01551812]
[1772416294681,2.14691665,84.603,84.572,11.82424443]
[1772416295371,2.14691665,84.599,84.571,2.01551812]
[1772416295793,2.14691665,84.589,84.557,2.01551812]
[1772416296293,2.14691665,84.587,84.56,8.77943719]
[1772416296498,2.14691665,84.587,84.561,2.01551812]
[1772416297111,11.82200784,84.588,84.561,2.01551812]
[1772416298188,11.82228737,84.586,84.561,2.01551812]
[1772416298697,8.77943719,84.61,84.581,2.01551812]
[1772416298894,10.92635384,84.61,84.581,2.01551812]
[1772416299098,2.14691665,84.609,84.581,2.01551812]
[1772416300790,2.14691665,84.607,84.581,2.01551812]
[1772416300999,2.14691665,84.599,84.57,8.77943719]
[1772416301193,2.14691665,84.589,84.564,2.01551812]
[1772416301703,2.14691665,84.569,84.543,11.82819162]
[1772416303297,13.97172035,84.568,84.543,11.82819162]
[1772416303604,13.97172035,84.568,84.541,2.01551812]
[1772416303806,13.97172035,84.568,84.542,2.01551812]
[1772416304302,2.14691665,84.567,84.542,2.01551812]
[1772416305401,2.14691665,84.567,84.544,2.01551812]
[1772416306287,11.82415161,84.573,84.544,2.01551812]
[1772416306487,2.14691665,84.572,84.55,8.77943719]
[1772416306690,2.14691665,84.572,84.551,2.01551812]
[1772416307386,11.82438424,84.571,84.551,2.01551812]
[1772416308300,8.77943719,84.57,84.544,2.03701571]
[1772416308509,2.10284774,84.569,84.544,2.03701571]
[1772416309388,11.8248037,84.568,84.544,2.03701571]
[1772416309588,2.10284774,84.567,84.54,8.77411394]
[1772416309909,2.10284774,84.567,84.537,2.03701571]
[1772416311009,2.10284774,84.565,84.537,2.03701571]
[1772416311193,2.10284774,84.559,84.531,13.86699524]
[1772416311394,2.10284774,84.559,84.532,2.03701571]
[1772416311901,2.10284774,84.549,84.522,11.83120222]
[1772416312107,8.77411394,84.54,84.522,11.83120222]
[1772416312300,2.10284774,84.539,84.517,11.83191221]
[1772416312509,2.10284774,84.539,84.513,2.03701571]
[1772416312690,2.10284774,84.539,84.508,11.83319015]
[1772416312890,2.10284774,84.538,84.509,2.03701571]
[1772416313196,2.10284774,84.538,84.498,29.58625531]
[1772416313197,11.8291399,84.537,84.511,2.03701571]
[1772416313403,8.77411394,84.54,84.511,2.03701571]
[1772416314908,11.82830039,84.543,84.511,2.03701571]
[1772416315211,11.82776126,84.547,84.521,2.03701571]
[1772416315590,11.82776126,84.547,84.523,2.03701571]
[1772416315791,2.10284774,84.551,84.523,2.03701571]
[1772416316291,11.82732111,84.55,84.523,2.03701571]
[1772416316609,11.8267741,84.554,84.523,2.03701571]
[1772416316914,13.92962184,84.554,84.523,2.03701571]
[1772416317107,2.10284774,84.553,84.523,2.03701571]
[1772416317694,10.87696168,84.56,84.525,2.03701571]
[1772416318110,2.10284774,84.559,84.525,2.03701571]
[1772416319321,11.82466388,84.569,84.531,2.03701571]
[1772416319692,11.82466388,84.569,84.533,2.03701571]
[1772416320826,11.82466388,84.569,84.541,2.03701571]
[1772416321329,2.10284774,84.549,84.517,2.03701571]
[1772416321525,8.77411394,84.54,84.517,2.03701571]
[1772416321937,8.77411394,84.53,84.51,2.03701571]
[1772416322230,8.77411394,84.56,84.51,2.03701571]
[1772416322410,8.77411394,84.53,84.51,2.03701571]
[1772416322607,8.77411394,84.54,84.51,2.03701571]
[1772416323110,8.77411394,84.53,84.51,2.03701571]
[1772416326017,20.60283407,84.54,84.512,2.03701571]
[1772416326216,2.10284774,84.539,84.512,2.03701571]
[1772416326617,8.77411394,84.54,84.512,2.03701571]
[1772416328045,8.77411394,84.53,84.512,2.03701571]
[1772416328254,11.82886005,84.539,84.512,2.03701571]
[1772416328543,11.82886005,84.539,84.513,2.03701571]
[1772416328717,8.77411394,84.53,84.513,2.03701571]
[1772416328921,2.10284774,84.529,84.506,11.83335408]
[1772416329738,8.77411394,84.53,84.506,2.03701571]
[1772416330542,3.68808361,84.54,84.506,2.03701571]
[1772416331638,3.68808361,84.55,84.506,2.03701571]
[1772416331939,3.68808361,84.55,84.508,2.03701571]
[1772416332332,11.82746099,84.549,84.508,2.03701571]
[1772416332636,8.77901329,84.54,84.508,2.03701571]
[1772416334021,29.56410818,84.562,84.51,2.20180236]
[1772416334022,8.77901329,84.55,84.51,2.20180236]
[1772416334943,10.85457546,84.55,84.51,2.20180236]
[1772416335144,8.77901329,84.52,84.51,2.20180236]
[1772416335448,2.07556217,84.539,84.51,2.20180236]
[1772416335449,8.77901329,84.53,84.51,2.20180236]
[1772416336233,8.77901329,84.53,84.512,2.20180236]
[1772416337455,8.77901329,84.53,84.511,11.83277916]
[1772416337456,103.1,84.703,84.52,17.55802658]
[1772416337644,22.7,84.87,84.582,0.28432314]
[1772416337645,9.48126465,84.68,84.582,0.28432314]
[1772416337851,8.77901329,84.63,84.582,2.15689774]
[1772416338147,8.77901329,84.61,84.573,2.15689774]
[1772416338347,8.77901329,84.61,84.575,2.15689774]
[1772416338652,11.81694012,84.625,84.575,2.15689774]
[1772416338826,8.77901329,84.62,84.575,2.15689774]
[1772416339031,8.77901329,84.62,84.574,0.28432314]
[1772416339032,8.77901329,84.62,84.581,2.15689774]
[1772416339831,8.77901329,84.62,84.583,2.15689774]
[1772416340026,8.77901329,84.64,84.565,2.15689774]
[1772416340027,2.16889139,84.599,84.565,2.15689774]
[1772416340552,8.77901329,84.59,84.565,2.15689774]
[1772416342145,11.81931728,84.608,84.571,2.15689774]
[1772416342340,8.77901329,84.6,84.571,2.15689774]
[1772416343538,8.77901329,84.6,84.572,11.82424443]
[1772416343743,8.77901329,84.61,84.573,2.15689774]
[1772416344059,8.77901329,84.62,84.581,2.15689774]
[1772416344649,2.16889139,84.619,84.581,2.15689774]
[1772416345242,2.16889139,84.619,84.583,2.15689774]
[1772416345740,8.77901329,84.62,84.583,2.15689774]
[1772416346647,8.77901329,84.62,84.582,11.82284646]
[1772416346648,8.77901329,84.64,84.601,2.15689774]
[1772416346830,8.77901329,84.64,84.611,2.15689774]
[1772416347029,2.16889139,84.639,84.601,2.15689774]
[1772416347237,2.16889139,84.637,84.603,2.15689774]
[1772416347648,8.77901329,84.63,84.603,2.15689774]
[1772416348037,2.16889139,84.63,84.603,2.15689774]
[1772416348654,10.94790468,84.63,84.603,2.15689774]
[1772416349149,2.16889139,84.639,84.603,2.15689774]
[1772416349361,2.16889139,84.661,84.621,2.15689774]
[1772416349651,2.16889139,84.659,84.621,2.15689774]
[1772416349854,8.77901329,84.67,84.631,2.15689774]
[1772416350044,8.77901329,84.65,84.621,2.15689774]
[1772416350235,8.77901329,84.64,84.608,2.15689774]
[1772416350637,2.16889139,84.642,84.608,2.15689774]
[1772416350836,8.77901329,84.65,84.611,2.44122088]
[1772416351255,8.77901329,84.65,84.613,0.28432314]
[1772416351435,8.77901329,84.65,84.622,2.15689774]
[1772416351754,2.16889139,84.658,84.622,2.15689774]
[1772416351950,2.16889139,84.64,84.605,61.8]
[1772416352155,2.16889139,84.639,84.605,2.44122088]
[1772416353036,8.77901329,84.63,84.606,2.15689774]
[1772416353941,13.98405231,84.638,84.608,2.15689774]
[1772416354146,2.16889139,84.637,84.608,2.15689774]
[1772416355152,8.77901329,84.63,84.608,2.15689774]
[1772416356056,8.77901329,84.63,84.609,11.81907362]
[1772416356249,2.16889139,84.637,84.609,11.81907362]
[1772416356446,11.81441823,84.643,84.611,2.15689774]
[1772416356851,11.81373481,84.648,84.611,2.15689774]
[1772416358238,11.81373481,84.648,84.61,8.77901329]
[1772416358239,11.81373481,84.648,84.613,2.15689774]
[1772416358746,8.77901329,84.65,84.613,2.15689774]
[1772416358947,8.77901329,84.66,84.621,2.44122088]
[1772416359663,2.16889139,84.68,84.65,8.77901329]
[1772416359959,10.94790468,84.68,84.651,2.15689774]
[1772416360262,8.77901329,84.67,84.644,2.15689774]
[1772416360467,13.97865605,84.676,84.644,2.15689774]
[1772416360756,2.16889139,84.676,84.644,2.15689774]
[1772416362262,11.80986123,84.675,84.646,2.15689774]
[1772416363272,11.80986123,84.675,84.615,3.69383402]
[1772416363273,2.16889139,84.669,84.631,0.28432314]
[1772416363438,2.16889139,84.688,84.631,0.28432314]
[1772416363642,2.16889139,84.688,84.617,29.54484479]
[1772416363643,8.3364687,84.703,84.67,8.77901329]
[1772416363841,8.77901329,84.76,84.64,8.77901329]
[1772416363842,2.16889139,84.712,84.68,8.77901329]
[1772416364358,10.94790468,84.71,84.681,11.80902445]
[1772416364674,2.16889139,84.709,84.681,11.80902445]
[1772416365258,2.16889139,84.709,84.674,2.15689774]
[1772416365446,2.16889139,84.709,84.676,2.15689774]
[1772416365648,2.16889139,84.717,84.69,8.77901329]
[1772416365856,1.01897058,84.721,84.7,8.77901329]
[1772416366151,2.16889139,84.742,84.689,2.15689774]
[1772416366152,13.96942383,84.742,84.71,8.77901329]
[1772416366560,2.16889139,84.739,84.71,8.77901329]
[1772416366870,2.16889139,84.739,84.701,12.09045101]
[1772416367855,2.16889139,84.739,84.702,2.16222177]
[1772416368063,2.16889139,84.739,84.71,8.77901329]
[1772416368254,11.80108097,84.738,84.711,2.16222177]
[1772416368457,2.16889139,84.739,84.712,11.80470299]
[1772416368657,2.16889139,84.739,84.712,13.96692476]
[1772416368856,2.20306165,84.749,84.713,2.16222177]
[1772416370566,0.2,84.75,84.731,2.16222177]
[1772416371867,2.20306165,84.739,84.711,0.28432314]
[1772416372172,8.73790433,84.72,84.695,2.16222177]
[1772416372546,2.20306165,84.725,84.697,2.16222177]
[1772416372750,2.20306165,84.733,84.701,2.16222177]
[1772416373559,2.20306165,84.729,84.696,11.80693303]
[1772416373877,2.20306165,84.719,84.689,11.80778708]
[1772416374552,2.20306165,84.717,84.689,11.80778708]
[1772416375146,2.20306165,84.717,84.689,13.97000885]
[1772416375349,2.20306165,84.717,84.69,2.16222177]
[1772416376568,2.20306165,84.709,84.684,11.80847217]
[1772416378076,2.20306165,84.725,84.691,2.44654491]
[1772416378865,11.80261309,84.727,84.691,2.16222177]
[1772416378866,2.20306165,84.719,84.691,2.16222177]
[1772416380176,2.20306165,84.709,84.685,11.80832767]
[1772416380379,2.20306165,84.699,84.668,11.81074215]
[1772416380562,2.20306165,84.689,84.652,2.16222177]
[1772416380956,2.20306165,84.699,84.671,2.16222177]
[1772416382085,10.94096598,84.72,84.681,2.44654491]
[1772416382257,2.20306165,84.729,84.691,2.16222177]
[1772416384554,2.20306165,84.729,84.701,2.16222177]
[1772416384860,2.20306165,84.729,84.692,41.32621735]
[1772416384861,2.20306165,84.743,84.711,2.16222177]
[1772416385059,2.20306165,84.739,84.703,2.16222177]
[1772416385268,2.20306165,84.729,84.693,2.16222177]
[1772416386556,2.20306165,84.717,84.687,11.80811332]
[1772416387063,2.20306165,84.717,84.688,2.16222177]
[1772416387573,20.54019454,84.73,84.692,2.16222177]
[1772416387771,2.20306165,84.729,84.692,2.16222177]
[1772416388360,2.20306165,84.728,84.692,2.16222177]
[1772416388762,11.80073888,84.741,84.711,2.16222177]
[1772416388962,2.20306165,84.743,84.711,2.16222177]
[1772416389181,14.00346928,84.743,84.711,2.16222177]
[1772416389373,2.20306165,84.742,84.711,2.16222177]
[1772416390768,2.20306165,84.742,84.713,2.16222177]
[1772416391180,2.20306165,84.739,84.707,11.805293]
[1772416393884,2.14119873,84.729,84.696,11.80684223]
[1772416394676,2.14119873,84.729,84.7,8.73790433]
[1772416394880,2.14119873,84.729,84.701,2.45836696]
[1772416395079,2.14119873,84.737,84.701,2.45836696]
[1772416395488,2.14119873,84.737,84.71,8.73790433]
[1772416395672,2.14119873,84.729,84.697,0.28432314]
[1772416395867,2.14119873,84.729,84.699,0.28432314]
[1772416396083,2.14119873,84.729,84.699,2.45836696]
[1772416396282,2.14119873,84.729,84.701,2.45836696]
[1772416397074,2.19734572,84.727,84.701,2.45836696]
[1772416398489,2.19734572,84.727,84.702,11.80609666]
[1772416399094,2.19734572,84.727,84.702,13.9705685]
[1772416399788,2.19734572,84.727,84.703,2.16447184]
[1772416401193,2.19734572,84.727,84.704,11.8058179]
[1772416401794,2.19734572,84.727,84.704,13.97028974]
[1772416403097,2.19734572,84.727,84.705,2.16447184]
[1772416403282,2.19734572,84.737,84.707,2.16447184]
[1772416404997,2.19734572,84.737,84.711,2.16447184]
[1772416405200,2.19734572,84.749,84.711,2.16447184]
[1772416406286,0.2,84.75,84.731,2.16447184]
[1772416407792,0.2,84.75,84.693,3.69383402]
[1772416407793,2.19734572,84.739,84.706,2.44879498]
[1772416408003,2.19734572,84.739,84.708,2.44879498]
[1772416408903,2.19734572,84.739,84.712,2.16447184]
[1772416409278,2.19734572,84.739,84.713,11.80456364]
[1772416409682,2.19734572,84.73,84.708,11.80512322]
[1772416410179,2.19734572,84.73,84.708,13.96959506]
[1772416412501,2.19734572,84.73,84.701,12.09055919]
[1772416412715,2.19734572,84.729,84.701,12.09055919]
[1772416414302,0.2,84.75,84.701,12.09055919]
[1772416414303,2.19734572,84.745,84.711,2.44879498]
[1772416414506,2.19734572,84.745,84.722,11.80330964]
[1772416415310,2.19734572,84.745,84.722,13.96778148]
[1772416415601,0.2,84.75,84.73,8.73790433]
[1772416415790,0.2,84.75,84.731,2.16447184]
[1772416417111,2.19734572,84.76,84.733,2.16447184]
[1772416417285,2.19734572,84.76,84.732,41.3067082]
[1772416417286,0.2,84.77,84.741,2.44879498]
[1772416417685,0.2,84.77,84.751,2.16447184]
[1772416418001,0.2,84.84,84.81,0.28432314]
[1772416418211,0.2,84.84,84.82,8.73790433]
[1772416418212,1e-08,84.84,84.82,8.73790433]
[1772416418500,1e-08,84.84,84.821,0.28432314]
[1772416419203,8.73790433,84.87,84.831,11.78814348]
[1772416419594,11.78286535,84.869,84.831,11.78814348]
[1772416420104,2.19734572,84.868,84.831,11.78814348]
[1772416420310,2.19734572,84.859,84.825,11.78890668]
[1772416421609,2.19734572,84.859,84.82,8.73790433]
[1772416421816,2.19734572,84.859,84.61,45.656425]
[1772416421817,2.19734572,84.829,84.809,3.89696235]
[1772416421988,2.19734572,84.829,84.792,2.16447184]
[1772416422611,8.73790433,84.82,84.792,2.16447184]
[1772416422795,2.19734572,84.829,84.792,2.16447184]
[1772416423511,8.73790433,84.83,84.792,2.16447184]
[1772416425411,8.73790433,84.83,84.801,2.30663341]
[1772416425610,8.73790433,84.83,84.801,2.16447184]
[1772416425809,8.73790433,84.83,84.793,13.95789818]
[1772416426398,8.73790433,84.83,84.793,2.16447184]
[1772416426599,8.73790433,84.83,84.8,8.73790433]
[1772416426820,8.73790433,84.83,84.793,2.16447184]
[1772416427019,8.73790433,84.82,84.79,8.73790433]
[1772416427200,8.73790433,84.82,84.785,2.05905723]
[1772416427598,41.26433935,84.819,84.785,2.05905723]
[1772416427797,11.78981124,84.819,84.786,11.79440001]
[1772416427999,11.78981124,84.819,84.79,8.73790433]
[1772416428211,11.78981124,84.819,84.786,13.85345724]
[1772416428397,11.78981124,84.819,84.787,2.05905723]
[1772416429309,0.63849294,84.818,84.781,0.28432314]
[1772416429518,0.63849294,84.818,84.782,2.05905723]
[1772416430528,11.79008925,84.817,84.79,8.72215729]
[1772416430717,11.79008925,84.817,84.791,2.05905723]
[1772416431621,8.72215729,84.81,84.778,2.05905723]
[1772416431827,0.64083991,84.809,84.771,0.28432314]
[1772416432015,8.72215729,84.78,84.754,2.05905723]
[1772416433128,8.72215729,84.78,84.755,2.05905723]
[1772416433707,11.79452048,84.786,84.755,2.05905723]
[1772416435320,0.64310693,84.785,84.75,8.72215729]
[1772416435629,11.79452048,84.786,84.74,10.78121452]
[1772416435630,8.72215729,84.77,84.74,10.78121452]
[1772416435817,8.72215729,84.77,84.741,2.05905723]
[1772416437235,0.64457521,84.799,84.761,2.05905723]
[1772416437438,8.72215729,84.79,84.761,2.05905723]
[1772416437911,0.64529672,84.799,84.761,2.05905723]
[1772416438429,0.64529672,84.779,84.743,2.05905723]
[1772416439035,11.79551298,84.778,84.745,2.05905723]
[1772416439409,11.79551298,84.778,84.751,2.05905723]
[1772416443631,0.64945507,84.777,84.744,2.05905723]
[1772416444136,0.64945507,84.777,84.746,2.05905723]
[1772416445518,0.65077836,84.769,84.731,2.34338037]
[1772416445712,0.65077836,84.761,84.733,2.05905723]
[1772416445916,9.37293565,84.76,84.733,2.05905723]
[1772416446231,9.37293565,84.76,84.721,29.50862241]
[1772416446232,8.72215729,84.75,84.721,2.05905723]
[1772416446538,0.65077836,84.759,84.721,2.05905723]
[1772416446731,0.65077836,84.759,84.723,2.05905723]
[1772416448239,11.79829632,84.758,84.725,2.05905723]
[1772416448714,0.65270684,84.749,84.72,8.72215729]
[1772416448917,0.65270684,84.749,84.653,13.07570537]
[1772416448918,0.65270684,84.739,84.711,2.05905723]
[1772416449419,8.72215729,84.75,84.721,2.05905723]
[1772416450243,11.79954925,84.749,84.722,2.05905723]
[1772416452542,0.65517634,84.748,84.722,2.05905723]
[1772416452928,58.97505447,84.782,84.73,8.72215729]
[1772416452929,11.79826232,84.759,84.73,8.72215729]
[1772416453242,11.79826232,84.759,84.731,2.19516257]
[1772416453445,8.72215729,84.78,84.751,2.19516257]
[1772416453735,11.79537385,84.779,84.751,2.19516257]
[1772416453942,0.65636896,84.769,84.74,2.19516257]
[1772416454524,11.79676532,84.769,84.733,2.19516257]
[1772416454733,11.79676532,84.769,84.74,10.91731986]
[1772416454925,11.79676532,84.769,84.741,2.19516257]
[1772416455747,11.79551298,84.778,84.751,2.19516257]
[1772416457725,0.65923268,84.779,84.746,2.11382481]
[1772416457943,41.28186074,84.783,84.721,2.11382481]
[1772416457944,0.65923268,84.759,84.721,2.11382481]
[1772416458523,8.72215729,84.75,84.721,2.11382481]
[1772416458922,0.65978584,84.757,84.721,2.11382481]
[1772416459143,0.65978584,84.759,84.721,2.11382481]
[1772416459533,8.72215729,84.75,84.721,2.11382481]
[1772416460543,11.79829632,84.758,84.723,2.11382481]
[1772416460928,12.45916949,84.758,84.723,2.11382481]
[1772416462050,12.45970381,84.758,84.723,2.11382481]
[1772416462348,0.66140749,84.757,84.723,2.11382481]
[1772416462652,11.79829632,84.758,84.725,2.11382481]
[1772416463041,8.72215729,84.76,84.731,2.11382481]
[1772416463351,11.79703078,84.768,84.731,2.11382481]